fUSD/lending_fUSD_20260329
["ID","MTS","AMOUNT","RATE_DAILY","PERIOD"]
[419061180,1774822243164,-500.0,0.00013698,2]
[419061181,1774822243174,-500.0,0.00013698,2]
[419061182,1774822243185,-500.0,0.00013698,2]
[419061183,1774822243197,-500.0,0.00013698,2]
[419061184,1774822243207,-500.0,0.00013698,2]
[419061185,1774822243216,-500.0,0.00013698,2]
[419061186,1774822243226,-500.0,0.00013698,2]
[419061187,1774822243236,-500.0,0.00013698,2]
[419061188,1774822243246,-500.0,0.00013698,2]
[419061189,1774822243255,-500.0,0.00013698,2]
[419061190,1774822243265,-500.0,0.00013698,2]
[419061191,1774822243274,-500.0,0.00013698,2]
[419061192,1774822243284,-500.0,0.00013698,2]
[419061193,1774822243294,-500.0,0.00013698,2]
[419061194,1774822243304,-500.0,0.00013698,2]
[419061195,1774822243313,-454.01718216,0.00013698,2]
[419061196,1774822243323,-500.0,0.00013698,2]
[419061197,1774822243333,-500.0,0.00013698,2]
[419061198,1774822243344,-500.0,0.00013698,2]
[419061199,1774822243354,-500.0,0.00013698,2]
[419061200,1774822243364,-500.0,0.00013698,2]
[419061201,1774822243373,-500.0,0.00013698,2]
[419061202,1774822243383,-500.0,0.00013698,2]
[419061203,1774822243393,-500.0,0.00013698,2]
[419061204,1774822243403,-500.0,0.00013698,2]
[419061205,1774822243413,-500.0,0.00013698,2]
[419061206,1774822243422,-500.0,0.00013698,2]
[419061207,1774822243432,-500.0,0.00013698,2]
[419061208,1774822243441,-500.0,0.00013698,2]
[419061209,1774822243451,-500.0,0.00013698,2]
[419061210,1774822243463,-500.0,0.00013698,2]
[419061211,1774822243473,-500.0,0.00013698,2]
[419061212,1774822243482,-500.0,0.00013698,2]
[419061213,1774822243492,-500.0,0.00013698,2]
[419061214,1774822243501,-500.0,0.00013698,2]
[419061215,1774822243511,-500.0,0.00013698,2]
[419061216,1774822243522,-500.0,0.00013698,2]
[419061217,1774822243532,-500.0,0.00013698,2]
[419061218,1774822243542,-500.0,0.00013698,2]
[419061219,1774822243551,-500.0,0.00013698,2]
[419061220,1774822243561,-500.0,0.00013698,2]
[419061221,1774822243571,-500.0,0.00013698,2]
[419061222,1774822243580,-500.0,0.00013698,2]
[419061223,1774822243590,-500.0,0.00013698,2]
[419061224,1774822243599,-329.44503174,0.00013698,2]
[419061225,1774822243609,-500.0,0.00013698,2]
[419061226,1774822243619,-500.0,0.00013698,2]
[419061228,1774822243628,-500.0,0.00013698,2]
[419061230,1774822243638,-500.0,0.00013698,2]
[419061231,1774822243648,-500.0,0.00013698,2]
[419061233,1774822243658,-500.0,0.00013698,2]
[419061235,1774822243668,-500.0,0.00013698,2]
[419061237,1774822243678,-500.0,0.00013698,2]
[419061239,1774822243688,-500.0,0.00013698,2]
[419061241,1774822243698,-500.0,0.00013698,2]
[419061242,1774822243707,-500.0,0.00013698,2]
[419061244,1774822243717,-500.0,0.00013698,2]
[419061245,1774822243727,-500.0,0.00013698,2]
[419061247,1774822243737,-500.0,0.00013698,2]
[419061248,1774822243746,-229.43459126,0.00013698,2]
[419061249,1774822243756,-500.0,0.00013698,2]
[419061250,1774822243766,-500.0,0.00013698,2]
[419061251,1774822243775,-500.0,0.00013698,2]
[419061252,1774822243785,-500.0,0.00013698,2]
[419061253,1774822243794,-500.0,0.00013698,2]
[419061254,1774822243803,-500.0,0.00013698,2]
[419061255,1774822243813,-500.0,0.00013698,2]
[419061256,1774822243822,-500.0,0.00013698,2]
[419061257,1774822243832,-500.0,0.00013698,2]
[419061258,1774822243841,-500.0,0.00013698,2]
[419061259,1774822243851,-500.0,0.00013698,2]
[419061260,1774822243861,-500.0,0.00013698,2]
[419061261,1774822243870,-500.0,0.00013698,2]
[419061262,1774822243881,-500.0,0.00013698,2]
[419061263,1774822243891,-500.0,0.00013698,2]
[419061264,1774822243901,-500.0,0.00013698,2]
[419061265,1774822243911,-500.0,0.00013698,2]
[419061266,1774822243921,-500.0,0.00013698,2]
[419061267,1774822243931,-500.0,0.00013698,2]
[419061268,1774822243941,-500.0,0.00013698,2]
[419061269,1774822243951,-500.0,0.00013698,2]
[419061270,1774822243960,-500.0,0.00013698,2]
[419061271,1774822243970,-500.0,0.00013698,2]
[419061272,1774822243980,-500.0,0.00013698,2]
[419061273,1774822243989,-500.0,0.00013698,2]
[419061274,1774822243999,-500.0,0.00013698,2]
[419061275,1774822244009,-500.0,0.00013698,2]
[419061276,1774822244018,-500.0,0.00013698,2]
[419061277,1774822244028,-527.05222481,0.00013698,2]
[419061278,1774822244037,-500.0,0.00013698,2]
[419061279,1774822244047,-500.0,0.00013698,2]
[419061280,1774822244057,-500.0,0.00013698,2]
[419061281,1774822244067,-500.0,0.00013698,2]
[419061282,1774822244076,-500.0,0.00013698,2]
[419061283,1774822244086,-500.0,0.00013698,2]
[419061284,1774822244095,-500.0,0.00013698,2]
[419061285,1774822244105,-500.0,0.00013698,2]
[419061286,1774822244114,-500.0,0.00013698,2]
[419061287,1774822244125,-500.0,0.00013698,2]
[419061288,1774822244134,-476.77743701,0.00013698,2]
[419061289,1774822244145,-500.0,0.00013698,2]
[419061290,1774822244155,-500.0,0.00013698,2]
[419061291,1774822244165,-500.0,0.00013698,2]
[419061292,1774822244175,-500.0,0.00013698,2]
[419061293,1774822244184,-500.0,0.00013698,2]
[419061294,1774822244194,-500.0,0.00013698,2]
[419061295,1774822244204,-500.0,0.00013698,2]
[419061296,1774822244214,-502.37596608,0.00013698,2]
[419061297,1774822244224,-500.0,0.00013698,2]
[419061298,1774822244234,-500.0,0.00013698,2]
[419061299,1774822244244,-500.0,0.00013698,2]
[419061300,1774822244255,-500.0,0.00013698,2]
[419061301,1774822244265,-500.0,0.00013698,2]
[419061302,1774822244275,-500.0,0.00013698,2]
[419061303,1774822244285,-566.97722897,0.00013698,2]
[419061304,1774822244295,-500.0,0.00013698,2]
[419061305,1774822244305,-500.0,0.00013698,2]
[419061306,1774822244316,-500.0,0.00013698,2]
[419061307,1774822244325,-500.0,0.00013698,2]
[419061308,1774822244335,-500.0,0.00013698,2]
[419061309,1774822244346,-500.0,0.00013698,2]
[419061310,1774822244356,-500.0,0.00013698,2]
[419061311,1774822244366,-500.0,0.00013698,2]
[419061312,1774822244376,-500.0,0.00013698,2]
[419061313,1774822244386,-500.0,0.00013698,2]
[419061314,1774822244396,-500.0,0.00013698,2]
[419061315,1774822244406,-500.0,0.00013698,2]
[419061316,1774822244415,-502.62451474,0.00013698,2]
[419061317,1774822244425,-500.0,0.00013698,2]
[419061318,1774822244435,-500.0,0.00013698,2]
[419061319,1774822244444,-500.0,0.00013698,2]
[419061320,1774822244453,-500.0,0.00013698,2]
[419061321,1774822244463,-500.0,0.00013698,2]
[419061322,1774822244472,-500.0,0.00013698,2]
[419061323,1774822244482,-500.0,0.00013698,2]
[419061324,1774822244491,-500.0,0.00013698,2]
[419061325,1774822244501,-500.0,0.00013698,2]
[419061326,1774822244511,-500.0,0.00013698,2]
[419061327,1774822244521,-500.0,0.00013698,2]
[419061328,1774822244531,-500.0,0.00013698,2]
[419061329,1774822244540,-500.0,0.00013698,2]
[419061330,1774822244550,-500.0,0.00013698,2]
[419061331,1774822244560,-212.34445911,0.00013698,2]
[419061332,1774822244570,-500.0,0.00013698,2]
[419061333,1774822244580,-500.0,0.00013698,2]
[419061334,1774822244721,-500.0,0.00013698,2]
[419061335,1774822244733,-500.0,0.00013698,2]
[419061336,1774822244742,-500.0,0.00013698,2]
[419061337,1774822244752,-500.0,0.00013698,2]
[419061338,1774822244762,-500.0,0.00013698,2]
[419061339,1774822244772,-500.0,0.00013698,2]
[419061340,1774822244782,-500.0,0.00013698,2]
[419061341,1774822244792,-500.0,0.00013698,2]
[419061342,1774822244802,-150.0,0.00013699,2]
[419061343,1774822244813,-158.44,0.00013699,2]
[419061344,1774822244822,-792.21,0.00013699,2]
[419061345,1774822244832,-403.83679365,0.00013699,2]
[419061346,1774822244841,-500.0,0.00013699,2]
[419061347,1774822244850,-500.0,0.00013699,2]
[419061348,1774822244860,-500.0,0.00013699,2]
[419061349,1774822244870,-9999.99,0.00013699,2]
[419061350,1774822244879,-784.86,0.00013699,2]
[419061351,1774822244889,-500.0,0.00013699,2]
[419061352,1774822244898,-441.89696112,0.00013699,2]
[419061353,1774822244909,-21604.97,0.000137,2]
[419061354,1774822244918,-5055.34,0.000137,2]
[419061355,1774822244927,-4837.98,0.000137,2]
[419061356,1774822244937,-4373.32,0.000137,2]
[419061357,1774822244947,-1602.93,0.000137,2]
[419061358,1774822244956,-3286.49,0.000137,2]
[419061359,1774822244966,-1252.0,0.00013771,2]
[419061360,1774822244975,-6152.0,0.0001383,2]
[419061361,1774822244985,-200.0,0.00013836,2]
[419061362,1774822244994,-1788.38122651,0.00013836,2]
[419061363,1774822245004,-1600.0,0.00013936,2]
[419061364,1774822245014,-150.0,0.00013973,2]
[419061365,1774822245025,-784.86,0.00013973,2]
[419061366,1774822245034,-578.20924308,0.00013999,2]
[419061367,1774822245043,-1428.38747117,0.00013999,2]
[419061368,1774822245053,-500.0,0.00013999,2]
[419061369,1774822245063,-717.60346743,0.00013999,2]
[419061370,1774822245072,-500.0,0.00013999,2]
[419061371,1774822245082,-209.40437684,0.00013999,2]
[419061372,1774822245092,-500.0,0.00013999,2]
[419061373,1774822245101,-151.0,0.00013999,2]
[419061374,1774822245112,-500.0,0.00013999,2]
[419061375,1774822245124,-500.0,0.00013999,2]
[419061376,1774822245134,-500.0,0.00013999,2]
[419061377,1774822245144,-500.0,0.00013999,2]
[419061378,1774822245155,-151.0,0.00013999,2]
[419061379,1774822245165,-500.0,0.00013999,2]
[419061380,1774822245176,-151.0,0.00013999,2]
[419061381,1774822245188,-500.0,0.00013999,2]
[419061382,1774822245198,-151.0,0.00013999,2]
[419061383,1774822245208,-500.0,0.00013999,2]
[419061384,1774822245219,-151.0,0.00013999,2]
[419061385,1774822245230,-500.0,0.00013999,2]
[419061386,1774822245241,-9552.16786547,0.00013999,2]
[419061387,1774822245251,-500.0,0.00013999,2]
[419061388,1774822245260,-292.30151101,0.00013999,2]
[419061389,1774822245269,-500.0,0.00013999,2]
[419061390,1774822245278,-209.40437684,0.00013999,2]
[419061391,1774822245288,-500.0,0.00013999,2]
[419061392,1774822245298,-500.0,0.00013999,2]
[419061393,1774822245309,-500.0,0.00013999,2]
[419061394,1774822245318,-500.0,0.00013999,2]
[419061395,1774822245327,-500.0,0.00013999,2]
[419061396,1774822245338,-500.0,0.00013999,2]
[419061397,1774822245347,-500.0,0.00013999,2]
[419061398,1774822245357,-500.0,0.00013999,2]
[419061399,1774822245367,-500.0,0.00013999,2]
[419061400,1774822245378,-500.0,0.00013999,2]
[419061401,1774822245389,-500.0,0.00013999,2]
[419061402,1774822245399,-500.0,0.00013999,2]
[419061403,1774822245408,-500.0,0.00013999,2]
[419061404,1774822245417,-174.61919141,0.00013999,2]
[419061405,1774822245426,-500.0,0.00013999,2]
[419061406,1774822245437,-500.0,0.00013999,2]
[419061407,1774822245446,-500.0,0.00013999,2]
[419061408,1774822245456,-500.0,0.00013999,2]
[419061409,1774822245465,-500.0,0.00013999,2]
[419061410,1774822245476,-500.0,0.00013999,2]
[419061411,1774822245488,-500.0,0.00013999,2]
[419061412,1774822245500,-200.0,0.00013999,2]
[419061413,1774822245510,-500.0,0.00013999,2]
[419061414,1774822245519,-250.0,0.00013999,2]
[419061415,1774822245529,-250.0,0.00013999,2]
[419061416,1774822245538,-250.0,0.00013999,2]
[419061417,1774822245548,-250.0,0.00013999,2]
[419061419,1774822245558,-250.0,0.00013999,2]
[419061421,1774822245567,-250.0,0.00013999,2]
[419061423,1774822245578,-151.0,0.00013999,2]
[419061424,1774822245587,-250.0,0.00013999,2]
[419061425,1774822245598,-693.3919763,0.00013999,2]
[419061426,1774822245608,-250.0,0.00013999,2]
[419061427,1774822245617,-250.0,0.00013999,2]
[419061428,1774822245626,-250.0,0.00013999,2]
[419061429,1774822245636,-151.0,0.00013999,2]
[419061430,1774822245645,-250.0,0.00013999,2]
[419061431,1774822245654,-194.63986655,0.00013999,2]
[419061432,1774822245663,-209.40437684,0.00013999,2]
[419061433,1774822245674,-279.9045709,0.00013999,2]
[419061434,1774822245683,-209.40437684,0.00013999,2]
[419061435,1774822245692,-743.50770149,0.00013999,2]
[419061436,1774822245701,-262.90206542,0.00013999,2]
[419061437,1774822245711,-500.0,0.00013999,2]
[419061438,1774822245721,-500.0,0.00013999,2]
[419061439,1774822245731,-500.0,0.00013999,2]
[419061440,1774822245741,-500.0,0.00013999,2]
[419061441,1774822245752,-500.0,0.00013999,2]
[419061442,1774822245762,-339.1249,0.00014,2]
[419061443,1774822245772,-200.0,0.00014,2]
[419061444,1774822245782,-9606.5105148,0.0001402,2]
[419061445,1774822245792,-500.0,0.00014054,2]
[419061446,1774822245804,-9905.5980765,0.00014054,2]
[419061447,1774822245814,-151.0,0.00014054,2]
[419061448,1774822245823,-272.62944185,0.00014054,2]
[419061449,1774822245834,-500.0,0.00014109,2]
[419061450,1774822245844,-10272.10520533,0.00014109,2]
[419061451,1774822245854,-151.0,0.00014109,2]
[419061452,1774822245863,-282.71673119,0.00014109,2]
[419061453,1774822245873,-28692.08909669,0.00014115,2]
[419061454,1774822245883,-27308.02061134,0.00014119,2]
[419061455,1774822245893,-500.0,0.00014164,2]
[419061456,1774822245903,-10652.17309792,0.00014164,2]
[419061457,1774822245911,-151.0,0.00014164,2]
[419061458,1774822245921,-293.17725025,0.00014164,2]
[419061459,1774822245930,-500.0,0.00014219,2]
[419061460,1774822245939,-11046.30350255,0.00014219,2]
[419061461,1774822245949,-151.0,0.00014219,2]
[419061462,1774822245959,-304.02480851,0.00014219,2]
[419061463,1774822245969,-1000.0,0.00014221,2]
[419061464,1774822245979,-1000.0,0.00014221,2]
[419061465,1774822245989,-150.0,0.00014247,2]
[419061466,1774822245998,-500.0,0.00014247,2]
[419061467,1774822246008,-784.86,0.00014247,2]
[419061468,1774822246019,-3000.0,0.0001426,2]
[419061469,1774822246028,-3000.0,0.0001426,2]
[419061470,1774822246038,-500.0,0.00014274,2]
[419061471,1774822246047,-11455.01673214,0.00014274,2]
[419061472,1774822246057,-151.0,0.00014274,2]
[419061473,1774822246066,-315.27372642,0.00014274,2]
[419061474,1774822246076,-500.0,0.00014329,2]
[419061475,1774822246085,-11878.85235123,0.00014329,2]
[419061476,1774822246095,-151.0,0.00014329,2]
[419061477,1774822246105,-326.9388543,0.00014329,2]
[419061478,1774822246116,-500.0,0.00014384,2]
[419061479,1774822246126,-12318.36988823,0.00014384,2]
[419061480,1774822246136,-151.0,0.00014384,2]
[419061481,1774822246146,-339.03559191,0.00014384,2]
[419061482,1774822246155,-200.0,0.00014384,2]
[419061483,1774822246165,-1854.55133189,0.00014384,2]
[419061484,1774822246175,-10397.42105758,0.0001439,2]
[419061485,1774822246184,-924.0,0.00014417,2]
[419061487,1774822246194,-924.0,0.00014417,2]
[419061489,1774822246203,-924.0,0.00014417,2]
[419061491,1774822246212,-924.0,0.00014417,2]
[419061492,1774822246221,-924.0,0.00014417,2]
[419061493,1774822246231,-924.0,0.00014417,2]
[419061494,1774822246240,-924.0,0.00014417,2]
[419061495,1774822246249,-924.0,0.00014417,2]
[419061497,1774822246258,-924.0,0.00014417,2]
[419061498,1774822246267,-924.0,0.00014417,2]
[419061499,1774822246276,-924.0,0.00014417,2]
[419061501,1774822246286,-924.0,0.00014417,2]
[419061503,1774822246295,-924.0,0.00014417,2]
[419061504,1774822246304,-924.0,0.00014417,2]
[419061505,1774822246313,-924.0,0.00014417,2]
[419061506,1774822246323,-924.0,0.00014417,2]
[419061507,1774822246333,-924.0,0.00014417,2]
[419061508,1774822246344,-924.0,0.00014417,2]
[419061509,1774822246355,-924.0,0.00014417,2]
[419061510,1774822246365,-924.0,0.00014417,2]
[419061511,1774822246375,-924.0,0.00014417,2]
[419061512,1774822246385,-924.0,0.00014417,2]
[419061513,1774822246395,-924.0,0.00014417,2]
[419061514,1774822246405,-924.29149207,0.00014417,2]
[419061515,1774822246413,-500.0,0.00014417,2]
[419061516,1774822246423,-528.23221251,0.00014417,2]
[419061517,1774822246432,-189.38,0.00014426,2]
[419061518,1774822246441,-500.0,0.00014439,2]
[419061519,1774822246451,-12774.14957409,0.00014439,2]
[419061520,1774822246460,-151.0,0.00014439,2]
[419061521,1774822246469,-500.0,0.00014494,2]
[419061522,1774822246479,-13246.79310833,0.00014494,2]
[419061523,1774822246489,-151.0,0.00014494,2]
[419061524,1774822246499,-888.83,0.00014521,2]
[419061525,1774822246508,-1481.23780761,0.00014547,2]
[419061526,1774822246518,-217.15233878,0.00014547,2]
[419061527,1774822246529,-151.0,0.00014547,2]
[419061528,1774822246538,-217.15233878,0.00014547,2]
[419061529,1774822246547,-181.08010149,0.00014547,2]
[419061530,1774822246557,-200.0,0.00014547,2]
[419061531,1774822246566,-719.04747942,0.00014547,2]
[419061532,1774822246576,-217.15233878,0.00014547,2]
[419061533,1774822246586,-290.26104003,0.00014547,2]
[419061534,1774822246595,-771.01748645,0.00014547,2]
[419061535,1774822246605,-500.0,0.00014549,2]
[419061536,1774822246615,-13736.92445334,0.00014549,2]
[419061537,1774822246624,-151.0,0.00014549,2]
[419061538,1774822246635,-1000.0,0.00014764,7]
[419061539,1774822246645,-1500.0,0.00014768,2]
[419061540,1774822246654,-1000.0,0.00014768,2]
[419061541,1774822246664,-7776.0,0.00014862,5]
[419061542,1774822246673,-4373.32,0.000149,2]
[419061543,1774822246682,-1602.93,0.000149,2]
[419061544,1774822246691,-3286.49,0.000149,2]
[419061545,1774822246701,-181.48576588,0.000149,2]
[419061546,1774822246710,-200.0,0.00014932,2]
[419061547,1774822246720,-952.11597327,0.00014932,2]
[419061548,1774822246730,-9606.5105148,0.0001496,2]
[419061549,1774822246739,-500.0,0.00015,2]
[419061550,1774822246749,-500.0,0.00015,2]
[419061551,1774822246759,-500.0,0.00015,2]
[419061552,1774822246768,-500.0,0.00015,2]
[419061553,1774822246777,-500.0,0.00015,2]
[419061554,1774822246786,-500.0,0.00015,2]
[419061555,1774822246796,-500.0,0.00015,2]
[419061556,1774822246805,-500.0,0.00015,2]
[419061557,1774822246814,-500.0,0.00015,2]
[419061558,1774822246826,-500.0,0.00015,2]
[419061559,1774822246836,-500.0,0.00015,2]
[419061560,1774822246845,-500.0,0.00015,2]
[419061561,1774822246855,-500.0,0.00015,2]
[419061562,1774822246864,-500.0,0.00015,2]
[419061563,1774822246874,-500.0,0.00015,2]
[419061564,1774822246883,-500.0,0.00015,2]
[419061565,1774822246893,-500.0,0.00015,2]
[419061566,1774822246902,-500.0,0.00015,2]
[419061567,1774822246911,-500.0,0.00015,2]
[419061568,1774822246921,-500.0,0.00015,2]
[419061569,1774822246932,-500.0,0.00015,2]
[419061570,1774822246942,-500.0,0.00015,2]
[419061571,1774822246951,-500.0,0.00015,2]
[419061572,1774822246960,-500.0,0.00015,2]
[419061573,1774822246969,-500.0,0.00015,2]
[419061574,1774822246979,-500.0,0.00015,2]
[419061575,1774822246988,-500.0,0.00015,2]
[419061576,1774822246997,-500.0,0.00015,2]
[419061577,1774822247007,-500.0,0.00015,2]
[419061578,1774822247017,-500.0,0.00015,2]
[419061579,1774822247026,-500.0,0.00015,2]
[419061580,1774822247038,-500.0,0.00015,2]
[419061581,1774822247048,-500.0,0.00015,2]
[419061582,1774822247057,-500.0,0.00015,2]
[419061583,1774822247067,-500.0,0.00015,2]
[419061584,1774822247077,-500.0,0.00015,2]
[419061585,1774822247086,-500.0,0.00015,2]
[419061586,1774822247095,-500.0,0.00015,2]
[419061587,1774822247107,-500.0,0.00015,2]
[419061588,1774822247118,-500.0,0.00015,2]
[419061589,1774822247128,-500.0,0.00015,2]
[419061590,1774822247137,-500.0,0.00015,2]
[419061591,1774822247148,-500.0,0.00015,2]
[419061592,1774822247157,-500.0,0.00015,2]
[419061593,1774822247166,-500.0,0.00015,2]
[419061594,1774822247175,-500.0,0.00015,2]
[419061595,1774822247184,-500.0,0.00015,2]
[419061596,1774822247194,-500.0,0.00015,2]
[419061597,1774822247203,-500.0,0.00015,2]
[419061598,1774822247212,-500.0,0.00015,2]
[419061599,1774822247221,-500.0,0.00015,2]
[419061600,1774822247230,-500.0,0.00015,2]
[419061601,1774822247240,-500.0,0.00015,2]
[419061602,1774822247249,-500.0,0.00015,2]
[419061603,1774822247259,-500.0,0.00015,2]
[419061604,1774822247268,-500.0,0.00015,2]
[419061605,1774822247278,-500.0,0.00015,2]
[419061606,1774822247288,-500.0,0.00015,2]
[419061607,1774822247297,-500.0,0.00015,2]
[419061608,1774822247306,-500.0,0.00015,2]
[419061609,1774822247316,-482.33,0.00015,2]
[419061610,1774822247325,-500.0,0.00015,2]
[419061611,1774822247335,-500.0,0.00015,2]
[419061612,1774822247345,-500.0,0.00015,2]
[419061613,1774822247354,-500.0,0.00015,2]
[419061614,1774822247363,-161.4,0.00015,2]
[419061615,1774822247372,-500.0,0.00015,2]
[419061616,1774822247382,-500.0,0.00015,2]
[419061617,1774822247391,-500.0,0.00015,2]
[419061618,1774822247401,-500.0,0.00015,2]
[419061619,1774822247410,-544.25,0.00015,2]
[419061620,1774822247419,-300.0,0.00015,2]
[419061621,1774822247428,-2065.44755052,0.00015,2]
[419061622,1774822247438,-4998.82438298,0.00015,2]
[419061623,1774822247447,-8077.67315191,0.00015,2]
[419061624,1774822247456,-1409.0,0.00015,2]
[419061625,1774822247466,-318.71842856,0.0001502,2]
[419061626,1774822247476,-393.00963669,0.00015031,2]
[419061627,1774822247485,-500.0,0.00015041,2]
[419061628,1774822247495,-880.69,0.00015068,2]
[419061629,1774822247504,-1536.04360649,0.00015095,2]
[419061630,1774822247513,-225.18697532,0.00015095,2]
[419061631,1774822247523,-151.0,0.00015095,2]
[419061632,1774822247532,-225.18697532,0.00015095,2]
[419061633,1774822247542,-187.78006525,0.00015095,2]
[419061634,1774822247551,-200.0,0.00015095,2]
[419061635,1774822247561,-745.65223616,0.00015095,2]
[419061636,1774822247571,-225.18697532,0.00015095,2]
[419061637,1774822247580,-301.00069851,0.00015095,2]
[419061638,1774822247589,-799.54513345,0.00015095,2]
[419061639,1774822247598,-21604.97,0.000151,2]
[419061640,1774822247607,-5055.34,0.000151,2]
[419061641,1774822247617,-4837.98,0.000151,2]
[419061642,1774822247626,-2000.0,0.000151,2]
[419061643,1774822247635,-629.043,0.00015129,2]
[419061644,1774822247645,-151.208,0.00015129,2]
[419061645,1774822247654,-1270.708,0.00015129,2]
[419061646,1774822247663,-1219.67,0.00015139,2]
[419061647,1774822247673,-930.845,0.00015139,2]
[419061648,1774822247682,-1329.0,0.00015139,2]
[419061649,1774822247691,-2482.596,0.00015139,2]
[419061650,1774822247700,-6013.0,0.00015139,2]
[419061651,1774822247710,-2129.0,0.00015153,2]
[419061652,1774822247720,-5534.0,0.000152,3]
[419061653,1774822247730,-10000.0,0.00015205,2]
[419061654,1774822247739,-150.0,0.00015215,2]
[419061655,1774822247751,-1000.0,0.00015233,2]
[419061656,1774822247760,-150.0,0.00015272,2]
[419061657,1774822247769,-150.0,0.00015273,2]
[419061658,1774822247779,-30000.0,0.00015286,2]
[419061659,1774822247789,-150.0,0.00015288,2]
[419061660,1774822247798,-1000.0,0.00015292,2]
[419061661,1774822247808,-2000.0,0.00015316,2]
[419061662,1774822247818,-150.0,0.00015331,2]
[419061663,1774822247827,-1000.0,0.00015335,2]
[419061664,1774822247837,-880.69,0.00015342,2]
[419061665,1774822247846,-1000.0,0.00015344,2]
[419061666,1774822247855,-1000.0,0.00015348,2]
[419061667,1774822247865,-2000.0,0.00015356,2]
[419061668,1774822247874,-2000.0,0.00015356,2]
[419061669,1774822247883,-2000.0,0.00015356,2]
[419061670,1774822247892,-2000.0,0.00015356,2]
[419061671,1774822247902,-2000.0,0.00015356,2]
[419061672,1774822247911,-2000.0,0.00015356,2]
[419061673,1774822247921,-2000.0,0.00015356,2]
[419061674,1774822247930,-2000.0,0.00015356,2]
[419061675,1774822247939,-2000.0,0.00015356,2]
[419061676,1774822247949,-2000.0,0.00015356,2]
[419061677,1774822247958,-467.00190823,0.00015357,2]
[419061678,1774822247968,-1000.0,0.00015358,2]
[419061679,1774822247978,-1000.0,0.0001536,2]
[419061680,1774822247987,-3665.0,0.00015367,2]
[419061681,1774822247997,-217.15233878,0.00015368,2]
[419061682,1774822248008,-1000.0,0.00015374,2]
[419061683,1774822248018,-3665.0,0.00015395,2]
[419061684,1774822248028,-1000.0,0.00015397,2]
[419061685,1774822248037,-150.0,0.00015398,2]
[419061686,1774822248046,-445.0914,0.000154,2]
[419061687,1774822248055,-1570.0,0.000154,2]
[419061688,1774822248065,-2000.0,0.000154,2]
[419061689,1774822248075,-5534.0,0.000154,5]
[419061690,1774822248084,-1000.0,0.00015403,2]
[419061691,1774822248095,-500.0,0.00015406,2]
[419061692,1774822248105,-1000.0,0.00015412,2]
[419061693,1774822248114,-1000.0,0.00015417,2]
[419061694,1774822248124,-150.0,0.00015418,2]
[419061695,1774822248133,-350.0,0.00015426,2]
[419061696,1774822248144,-2000.0,0.0001543,2]
[419061697,1774822248153,-2000.0,0.0001543,2]